Cogmind - Beta 12 @@@ ROGUE MODE // 2023.04.03 @ 15:20:28 // Winter2019/RPGLIKE Player: Delirus Result: Destroyed by X-82 Rainmaker with Heavy Flak Cannon Performance ------------- Evolutions (6) 3000 Regions Visited (19) 3800 Robots Destroyed (309) 1545 Value Destroyed (12779) 12779 Prototype IDs (36) 720 Alien Tech Used (0) 0 Bonus (5359) 5359 TOTAL SCORE: 27203 Bonus ------- High Alert Combat Kills 1884 Follower Combat Kills 278 Entered Garrisons 1200 Used RIF Installer 2500 Aligned with FarCom 300 Friendly Fire -803 Cogmind --------- Core Integrity 0/1350 Matter 320/450 Energy 675/675 System Corruption 1% Temperature Cool (0) Movement Walking (106) Location -4/Garrison Parts ------- > --- POWER (3) -------- Light Nuclear Core Improved Deuterium Engine Antimatter Reactor > --- PROPULSION (3) --- Myomer Leg Advanced VSS Leg Biometal Leg > --- UTILITY (9) ------ Advanced Weapon Cycler Advanced Weapon Cycler Improved Focal Shield Advanced Thermal Shield Relay Coupler [NC] (52) Relay Coupler [Brawler] (52) Relay Coupler [Sentry] (50) Relay Coupler [Hunter] (7) > --- WEAPON (3) ------- HERF Cannon Improved Grenade Launcher Advanced Remote Datajack > --- INVENTORY (5) ---- Improved Terrain Scanner Relay Coupler [NC] (62) Relay Coupler [Sentry] (46) Relay Coupler [Sentry] (42) Relay Coupler [Specialist] (40) Peak State ------------ > --- POWER ------------ Improved Deuterium Engine Improved Deuterium Engine > --- PROPULSION ------- Advanced VSS Leg Biometal Leg Biometal Leg > --- UTILITY ---------- Advanced Weapon Cycler Advanced Weapon Cycler Improved Focal Shield Remote Shield Relay Coupler [NC] Relay Coupler [Grunt] Relay Coupler [Brawler] Relay Coupler [Sentry] Relay Coupler [Hunter] > --- WEAPON ----------- Hypervelocity Mass Driver Hypervelocity Mass Driver Advanced Remote Datajack > --- INVENTORY -------- Improved Terrain Scanner Relay Coupler [NC] Relay Coupler [Sentry] Relay Coupler [Specialist] Improved Grenade Launcher [Rating: 97] Favorites ----------- Power Improved Ion Engine Engine Improved Ion Engine Power Core Nuclear Core Reactor Antimatter Reactor Propulsion Armored Wheel Treads Armored Treads Leg Biometal Leg Wheel Armored Wheel Hover Unit Gravmag System Utility Light Armor Plating Device Improved Terrain Scanner Processor Improved Targeting Computer Hackware Relay Coupler [Hunter] Protection Light Armor Plating Weapon Remote Datajack Energy Gun Medium Laser Energy Cannon Advanced Beam Cannon Ballistic Gun Assault Rifle Ballistic Cannon Gauss Cannon Launcher Rocket Launcher Special Weapon Remote Datajack Impact Weapon Powered Hammer Piercing Weapon Spear Special Melee Weapon Improved Datajack Build | -11 -10 -10 -9 -9 -9 -8 -8 -8 -8 -7 -7 -7 -7 -6 -6 -5 -5 -4 -4 ------- Run | Jun Mat Min Mat Min Exi Min Mat Gar Mat Fac Gar Fac Gar Fac Gar Fac Gar Fac Gar Slots Evolved 14 | 2 2 1 3 . . . 1 1 . 1 1 . . . . . 1 . 1 Power 2 | . . . 1 . . . . . . . . . . . . . . . 1 Propulsion 2 | . 1 . . . . . . . . 1 . . . . . . . . . Utility 8 | 1 1 1 2 . . . 1 1 . . . . . . . . 1 . . Weapon 2 | 1 . . . . . . . . . . 1 . . . . . . . . Parts Attached 214 | 3 8 7 27 4 2 2 21 16 28 8 12 2 6 16 10 . 20 6 16 Power 21 | . 1 . 2 . . . 1 1 2 1 1 1 1 3 2 . 1 1 3 Engine 14 | . 1 . 2 . . . . . 2 1 . . 1 3 2 . 1 . 1 Core 5 | . . . . . . . 1 1 . . 1 1 . . . . . . 1 Reactor 2 | . . . . . . . . . . . . . . . . . . 1 1 Propulsion 37 | 1 4 . 1 . . . 2 . 7 2 . . 1 6 5 . 2 2 4 Treads 1 | . . . . . . . . . 1 . . . . . . . . . . Leg 18 | . . . . . . . . . 2 . . . . 3 5 . 2 2 4 Wheel 6 | 1 2 . 1 . . . 2 . . . . . . . . . . . . Hover 12 | . 2 . . . . . . . 4 2 . . 1 3 . . . . . Flight . | . . . . . . . . . . . . . . . . . . . . Utility 81 | 1 3 6 7 1 . 2 11 6 6 3 8 1 3 5 3 . 8 1 6 Device 35 | 1 . 2 2 1 . . 3 . 3 . 2 1 3 5 2 . 4 1 5 Storage . | . . . . . . . . . . . . . . . . . . . . Processor 5 | . 1 . 1 . . . 1 . . 2 . . . . . . . . . Hackware 16 | . . . . . . . . 5 1 . 5 . . . . . 4 . 1 Protection 25 | . 2 4 4 . . 2 7 1 2 1 1 . . . 1 . . . . Artifact . | . . . . . . . . . . . . . . . . . . . . Weapon 75 | 1 . 1 17 3 2 . 7 9 13 2 3 . 1 2 . . 9 2 3 Energy Gun 6 | 1 . . 2 . . . 1 . 2 . . . . . . . . . . Energy Cannon 23 | . . . 8 2 2 . . . 3 . 1 . . 2 . . 3 1 1 Ballistic Gun 9 | . . 1 2 . . . 3 . 1 . . . . . . . 2 . . Ballistic Cannon 8 | . . . . . . . 2 2 2 . . . . . . . 2 . . Launcher 15 | . . . 5 1 . . 1 3 2 . . . . . . . 1 1 1 Special Weapon 5 | . . . . . . . . . 1 . 1 . 1 . . . 1 . 1 Impact Weapon 6 | . . . . . . . . 3 2 1 . . . . . . . . . Slashing Weapon . | . . . . . . . . . . . . . . . . . . . . Piercing Weapon 2 | . . . . . . . . . . 1 1 . . . . . . . . Special Melee Weapon 1 | . . . . . . . . 1 . . . . . . . . . . . Unidentified Prototypes 9 | . . . 3 1 . . 1 . 3 1 . . . . . . . . . Corrupted Parts 1 | . . . . . . . . . . . . . . . . . . . 1 System Corruption 1 | . . . . . . . . . . . . . . . . . . . 1 Parts Lost 13 | . . 1 . . . . 5 4 . . . . . . 1 . . . 2 Power 1 | . . . . . . . 1 . . . . . . . . . . . . Propulsion . | . . . . . . . . . . . . . . . . . . . . Utility 11 | . . 1 . . . . 3 4 . . . . . . 1 . . . 2 Weapon 1 | . . . . . . . 1 . . . . . . . . . . . . Highest Loss Streak 5 | . . 1 . . . . 5 2 . . . . . . 1 . . . 1 To Critical Strikes . | . . . . . . . . . . . . . . . . . . . . Average Slot Usage (%) 95 | . 91 94 98 100 84 90 91 92 99 99 98 100 94 98 98 93 98 100 91 Engine 11 | . 13 11 12 16 16 16 9 6 13 13 6 6 5 10 12 12 11 9 4 Core 1 | . . . . . . . 4 7 . . 4 6 6 . . . . . . Leg 3 | . . . . . . . . . 1 . . . . 7 13 18 17 17 16 Wheel 10 | . 14 24 17 16 16 16 15 14 5 . . . . . . . . . . Hover 2 | . 4 . . . . . . . 2 16 18 18 14 10 4 . . . . Device 14 | . 13 13 13 16 16 14 10 15 8 13 13 17 17 18 18 18 21 23 21 Processor 4 | . 3 . 3 8 8 8 12 7 6 7 7 . . . . . . . . Hackware 12 | . . . . . . . . 5 38 26 23 31 31 29 24 18 26 29 24 Protection 15 | . 12 19 31 25 25 25 22 18 2 6 5 . . . 5 6 1 . . Energy Gun 1 | . 13 11 . . . . . . . . . . . . . . . . . Energy Cannon 4 | . . . 10 11 1 8 1 . 2 . . . . 9 12 12 8 2 4 Ballistic Gun 2 | . 13 11 2 . . . 5 2 1 . . . . . . . 1 . . Launcher 1 | . . . 4 4 . . . 2 . . . . . . . . . 2 4 Special Weapon 2 | . . . . . . . . . 6 5 5 6 5 6 6 6 5 5 4 Impact Weapon 1 | . . . . . . . . 5 1 7 6 6 6 1 . . . . . Naked Turns . | . . . . . . . . . . . . . . . . . . . . Heaviest Build 69 | 8 14 20 38 38 48 55 63 69 31 31 34 32 32 47 52 52 58 58 60 Greatest Support 89 | 10 20 20 22 22 22 22 24 24 30 36 36 36 36 65 86 86 89 89 86 Greatest Overweight (x) 3 | . 1 . 1 1 2 2 2 2 3 1 . . 1 1 1 . . . . Average Overweight (x) . | . . . . 1 1 2 1 1 . . . . . . . . . . . Largest Inventory Capacity 5 | 1 1 2 4 4 4 4 4 4 4 4 4 4 4 4 5 5 5 5 5 Average Capacity 3 | . 1 1 2 4 4 4 4 4 4 4 4 4 4 4 4 5 5 5 5 Most Carried 5 | 1 1 2 4 4 4 4 4 4 4 4 4 4 4 4 5 5 5 5 5 Average Carried 3 | . 1 1 2 4 3 2 3 3 3 3 3 3 4 4 4 5 4 4 5 Final Capacity 5 | 1 1 2 4 4 4 4 4 4 4 4 4 4 4 4 5 5 5 5 5 Final Carried 5 | 1 1 2 4 4 2 3 4 2 3 4 4 4 4 4 5 5 5 5 5 Class Distribution -------------------- 31% | Scavenger-Mutant 22% | Bothacker-Mutant 10% | Mutant 8% | Botlord-Mutant 6% | Assassin 6% | Skirmisher 4% | Bothacker-Assassin 4% | Bothacker-Scout Dominant Class ---------------- Mutant | -10/Materials Mutant | -10/Mines Scavenger-Mutant | -9/Materials Scavenger-Mutant | -9/Mines Scavenger-Mutant | -9/Exiles Scavenger-Skirmisher | -8/Mines Skirmisher | -8/Materials Assassin | -8/Garrison Bothacker-Mutant | -8/Materials Bothacker-Assassin | -7/Factory Bothacker-Mutant | -7/Garrison Bothacker-Scout | -7/Factory Bothacker-Mutant | -7/Garrison Bothacker-Mutant | -6/Factory Bothacker-Mutant | -6/Garrison Bothacker-Mutant | -5/Factory Botlord-Mutant | -5/Garrison Botlord-Mutant | -4/Factory Botlord-Mutant | -4/Garrison Resources | -11 -10 -10 -9 -9 -9 -8 -8 -8 -8 -7 -7 -7 -7 -6 -6 -5 -5 -4 -4 ----------- Run | Jun Mat Min Mat Min Exi Min Mat Gar Mat Fac Gar Fac Gar Fac Gar Fac Gar Fac Gar Matter Collected 5703 | 236 289 325 1140 165 . 55 507 678 715 121 125 80 85 . 276 . 246 100 560 Remotely 10 | . . 10 . . . . . . . . . . . . . . . . . Salvage Created 8904 | 27 833 732 2116 252 . 267 1227 565 543 79 129 150 289 116 511 . 768 97 203 Parts 536 | 3 53 33 190 24 . 16 69 24 20 6 11 5 10 1 15 . 30 4 22 Haulers Intercepted 8 | . . . 6 . . . . . 2 . . . . . . . . . . Recyclers Shooed 8 | . . 2 4 . . . . . . . . . . 2 . . . . . Parts Field Recycled . | . . . . . . . . . . . . . . . . . . . . Retrieved Matter . | . . . . . . . . . . . . . . . . . . . . Parts Self-Destructed . | . . . . . . . . . . . . . . . . . . . . Prevented . | . . . . . . . . . . . . . . . . . . . . Kills | -11 -10 -10 -9 -9 -9 -8 -8 -8 -8 -7 -7 -7 -7 -6 -6 -5 -5 -4 -4 ------- Run | Jun Mat Min Mat Min Exi Min Mat Gar Mat Fac Gar Fac Gar Fac Gar Fac Gar Fac Gar Combat Hostiles Destroyed 254 | . 17 17 51 24 . 15 22 32 9 2 11 1 8 . 8 . 21 . 16 Melee 25 | . . . . . . . . 7 1 1 9 1 6 . . . . . . Guns 49 | . 17 16 7 . . . 7 1 1 . . . . . . . . . . Cannons 70 | . . . 20 5 . 7 10 3 7 . . . . . 7 . 8 . 3 AOE 89 | . . . 24 19 . 8 4 11 . . . . . . . . 11 . 12 Classes Destroyed 22 | 1 5 4 4 2 . 1 2 1 . . 1 . . . . . . . 1 Worker 16 | . 2 . 11 1 . 2 . . . . . . . . . . . . . Builder 18 | . . 1 14 1 . . 1 . . . . 1 . . . . . . . Tunneler 9 | 1 . 1 2 4 . . 1 . . . . . . . . . . . . Hauler 8 | . . . 6 . . . . . 2 . . . . . . . . . . Recycler 15 | . . 3 6 . . . 2 . 1 . . 1 . 1 . . . 1 . Mechanic 3 | . 1 . . . . . 2 . . . . . . . . . . . . Watcher 10 | . 2 . 5 . . . 2 . . . . 1 . . . . . . . Swarmer 73 | . 3 9 9 . . 8 . 13 4 . 6 . 3 . . . 10 . 8 Cutter 4 | . . . . . . . . . . . 2 . 2 . . . . . . Saboteur 4 | . . . . . . . . . . . . . . . . . . . 4 Grunt 104 | . 14 6 32 2 . 5 11 9 2 1 2 . 3 . 7 . 7 . 3 Brawler 1 | . . . 1 . . . . . . . . . . . . . . . . Duelist 7 | . . . 1 . . 1 . . 1 . 1 . . . . . 2 . 1 Protector 1 | . . . 1 . . . . . . . . . . . . . . . . Sentry 24 | . . 2 7 . . . 6 2 4 1 . 1 . . 1 . . . . Demolisher 2 | . . . . 2 . . . . . . . . . . . . . . . Specialist 6 | . . . . . . . 2 3 . . . . . . . . 1 . . Hunter 4 | . . . . . . 1 2 . . . . . . . . . 1 . . Programmer 6 | . . . . . . . . 5 . . . . . . . . 1 . . Heavy 1 | . . . . . . . 1 . . . . . . . . . . . . Zionite 1 | . . 1 . . . . . . . . . . . . . . . . . Assembled 20 | . . . . 20 . . . . . . . . . . . . . . . Thug 1 | . . 1 . . . . . . . . . . . . . . . . . Best Kill Streak 26 | 1 4 5 12 26 . 5 7 7 2 1 3 1 3 1 3 . 12 1 8 Combat Bots Only 22 | . 3 3 5 22 . 4 4 7 2 1 3 1 3 . 3 . 12 . 8 Max Kills in Single Turn 5 | 1 1 1 3 5 . 3 3 5 1 1 1 1 1 1 1 . 4 1 4 Gunslinging . | . . . . . . . . . . . . . . . . . . . . Exploded 5 | . . . 2 5 . 2 2 5 . . . . . . . . 4 . 4 Melee 1 | . . . . . . . . 1 1 1 1 1 1 . . . . . . Uniques/NPCs Destroyed . | . . . . . . . . . . . . . . . . . . . . Combat | -11 -10 -10 -9 -9 -9 -8 -8 -8 -8 -7 -7 -7 -7 -6 -6 -5 -5 -4 -4 -------- Run | Jun Mat Min Mat Min Exi Min Mat Gar Mat Fac Gar Fac Gar Fac Gar Fac Gar Fac Gar Damage Taken 9379 | . 483 659 714 382 . 268 1147 1712 339 148 494 126 712 . 623 41 921 . 610 Core 6332 | . 355 463 383 205 . 146 665 1057 255 104 341 99 564 . 470 35 713 . 477 Absorbed by Shields 803 | . . . 45 138 . 103 41 . . . . . . . 193 12 231 . 40 Redirected to Core 5248 | . 276 365 349 189 . 122 534 813 218 95 268 86 474 . 386 20 623 . 430 Redirected to Shielding 14 | . . . . . . . . . 14 . . . . . . . . . . Regen/Repaired (Parts) 229 | . . . . . . . 229 . . . . . . . . . . . . Core Remaining (%) 55 | 100 . 99 . . . 90 . . 30 . . . 13 . 35 . 20 . . Volleys Fired 773 | 2 67 69 222 25 . 13 52 30 77 2 12 9 4 7 60 . 72 8 42 Largest 2 | 2 2 2 2 2 . 1 2 2 1 1 1 1 1 1 2 . 2 2 2 Hottest 136 | 70 70 73 136 136 . 100 100 76 61 5 60 5 5 65 130 . 132 132 124 Shots Fired 1165 | 4 131 137 300 42 . 13 91 48 77 2 12 9 4 7 108 . 126 11 43 Gun 426 | 4 131 137 80 . . . 42 18 12 . . . . . . . 2 . . Cannon 560 | . . . 157 32 . 13 47 20 36 . 7 . . 7 99 . 107 6 29 Launcher 103 | . . . 63 10 . . 2 10 . . . . . . . . 6 . 12 Special 76 | . . . . . . . . . 29 2 5 9 4 . 9 . 11 5 2 Kinetic 366 | 2 65 68 56 . . . 82 38 27 . . . . . . . 22 6 . Thermal 584 | 2 66 69 174 32 . 13 7 . 21 . 7 . . 7 99 . 87 . . Explosive 103 | . . . 63 10 . . 2 10 . . . . . . . . 6 . 12 Electromagnetic 36 | . . . 7 . . . . . . . . . . . . . . . 29 Robot Hit Streak 26 | 4 15 19 15 9 . 11 26 19 19 4 7 3 1 4 10 . 15 7 6 Robot Miss Streak 7 | . 7 5 4 1 . 2 2 1 2 . 1 5 1 1 2 . 3 . 3 Penetration Max . | . . . . . . . . . . . . . . . . . . . . Secondary Targets 8 | . 2 5 1 . . . . . . . . . . . . . . . . Max Gunslinging Chain 1 | . 1 1 1 . . . . . . . . . . . . . . . . Shots Hit Robots 825 | 4 90 95 162 30 . 9 67 90 60 8 24 16 27 5 44 . 68 6 20 Core Hits 437 | 1 35 38 132 45 . 14 40 27 15 2 7 3 7 2 16 . 29 1 23 Critical Kills 8 | . . . 1 1 . . 1 . . . 1 . 1 . . . 2 1 . Critical Parts Destroyed 23 | . . 3 . . . . 1 13 . . 2 . 1 . . . 3 . . Critical Strikes 56 | . 7 7 1 1 . . 6 18 3 . 4 . 2 . . . 6 1 . Burn 12 | . 7 4 . . . . . . 1 . . . . . . . . . . Meltdown 4 | . . . . 1 . . 1 . . . . . . . . . 2 . . Destroy 10 | . . 3 1 . . . 1 . . . . . . . . . 4 1 . Blast 9 | . . . . . . . 4 3 2 . . . . . . . . . . Smash 20 | . . . . . . . . 15 . . 3 . 2 . . . . . . Impale 1 | . . . . . . . . . . . 1 . . . . . . . . Melee Attacks 224 | . . . . . . . . 95 3 12 55 16 43 . . . . . . Impact 188 | . . . . . . . . 95 3 10 40 15 25 . . . . . . Slashing . | . . . . . . . . . . . . . . . . . . . . Piercing 36 | . . . . . . . . . . 2 15 1 18 . . . . . . Sneak Attacks 16 | . . . . . . . . 10 . . 4 2 . . . . . . . Combat Hostiles 3 | . . . . . . . . 1 . . 2 . . . . . . . . Follow-up Attacks 12 | . . . . . . . . . . 1 4 . 7 . . . . . . Damage Inflicted 30182 | 49 1148 1200 5774 1832 . 2535 2706 4930 995 233 1135 689 983 142 1281 . 2727 25 1798 Guns 4296 | 49 1148 1200 861 . . . 547 244 247 . . . . . . . . . . Cannons 9983 | . . . 2015 602 . 1181 1299 468 686 . . . . 142 1281 . 1771 25 513 Explosions 9932 | . . . 2887 1230 . 1354 860 1360 . . . . . . . . 956 . 1285 Melee 5960 | . . . . . . . . 2858 62 233 1135 689 983 . . . . . . Ramming 11 | . . . 11 . . . . . . . . . . . . . . . . Kinetic 4948 | 24 550 648 622 . . . 1475 712 632 . . . . . . . 260 25 . Thermal 10742 | 25 598 552 2127 602 . 2535 1068 . 301 . . . . 142 1281 . 1511 . . Explosive 7786 | . . . 2792 1230 . . 163 1360 . . . . . . . . 956 . 1285 Electromagnetic 735 | . . . 222 . . . . . . . . . . . . . . . 513 Impact 5345 | . . . . . . . . 2858 62 198 886 689 652 . . . . . . Slashing . | . . . . . . . . . . . . . . . . . . . . Piercing 615 | . . . . . . . . . . 35 249 . 331 . . . . . . Highest Corruption 10 | . 4 4 2 2 2 2 1 6 10 . . . . . . . 1 . 1 Average Corruption 2 | . 3 4 1 2 2 2 1 2 6 . . . . . . . 1 . 1 Corruption Purged . | . . . . . . . . . . . . . . . . . . . . Corruption Blocked . | . . . . . . . . . . . . . . . . . . . . Effects 128 | . 14 15 18 10 4 2 6 19 35 . . . . . . . 5 . . Message Errors 32 | . 3 1 6 4 1 . 1 5 8 . . . . . . . 3 . . Matter Fused 34 | . 2 6 4 2 . 2 2 3 12 . . . . . . . 1 . . Heat Flow Errors 13 | . 1 2 2 . 3 . 1 2 2 . . . . . . . . . . Energy Discharges 17 | . 2 3 3 1 . . . 2 5 . . . . . . . 1 . . Parts Rejected 1 | . . . . . . . . . 1 . . . . . . . . . . Parts Fused 1 | . 1 . . . . . . . . . . . . . . . . . . Data Loss (minor) 11 | . 3 . . 2 . . . 4 2 . . . . . . . . . . Data Loss (major) 5 | . . . . 1 . . . 2 2 . . . . . . . . . . Misfires 3 | . . 1 . . . . 1 . 1 . . . . . . . . . . Alerts 4 | . . . 1 . . . 1 1 1 . . . . . . . . . . Weapon Failures 7 | . 2 2 2 . . . . . 1 . . . . . . . . . . Overload Shots . | . . . . . . . . . . . . . . . . . . . . Overflow Damage 2700 | . . . 177 58 . 459 40 1219 1 23 355 128 94 26 3 . 65 . 52 Projectiles 546 | . . . 72 20 . 318 25 21 1 . . . . 26 3 . 30 . 30 Explosions 463 | . . . 105 38 . 141 15 107 . . . . . . . . 35 . 22 Melee 1691 | . . . . . . . . 1091 . 23 355 128 94 . . . . . . Knockbacks 33 | . . . . . . . 6 13 8 . 3 . 3 . . . . . . Impact 11 | . . . . . . . . 6 . . 2 . 3 . . . . . . Kinetic 20 | . . . . . . . 6 6 8 . . . . . . . . . . Secondary 2 | . . . . . . . . 1 . . 1 . . . . . . . . Self-Inflicted Damage 848 | . . . 45 176 . 242 128 78 . . . . . . . . 68 . 111 Shots 28 | . . . 3 5 . 5 2 7 . . . . . . . . 3 . 3 Rammed 3 | . . . 3 . . . . . . . . . . . . . . . . Targets Rammed 3 | . . . 3 . . . . . . . . . . . . . . . . Kicked . | . . . . . . . . . . . . . . . . . . . . Crushed . | . . . . . . . . . . . . . . . . . . . . Highest Temperature 395 | 9 186 155 395 . 221 . 69 68 60 . . . . . . . . . 35 Average Temperature 63 | 5 28 52 122 . 106 . 27 29 56 . . . . . . . . . 18 Received Heat Transfer 2892 | . 315 297 320 20 . 12 398 486 108 42 126 36 243 . 152 6 218 . 113 Siege Activations . | . . . . . . . . . . . . . . . . . . . . Robots Corrupted 2 | . . . 1 . . . . . . . . . . . . . . . 1 Combat Hostiles 1 | . . . . . . . . . . . . . . . . . . . 1 Parts Fried 36 | . . . 3 . . . . 18 . 2 4 1 2 . . . . . 6 Impact Corruptions 51 | . . . . . . . . 35 . 1 8 3 4 . . . . . . Robots Melted 7 | . . 1 . 1 . . 1 . . . . . . . 1 . 3 . . Combat Hostiles 5 | . . 1 . . . . 1 . . . . . . . 1 . 2 . . Parts Melted 29 | . 6 5 1 3 . 1 1 1 . . . . . . 4 . 7 . . Heat Transferred 15947 | 74 2294 1924 3811 1036 . 2320 850 . 555 . . . . 185 1369 . 1529 . . Parts Sabotaged 12 | . . . . . . . . . . . . . . . . . . . 12 Parts Stolen . | . . . . . . . . . . . . . . . . . . . . Parts Stripped . | . . . . . . . . . . . . . . . . . . . . Power Chain Reactions 1 | . . . 1 . . . . . . . . . . . . . . . . Missiles Intercepted . | . . . . . . . . . . . . . . . . . . . . Alert | -11 -10 -10 -9 -9 -9 -8 -8 -8 -8 -7 -7 -7 -7 -6 -6 -5 -5 -4 -4 ------- Run | Jun Mat Min Mat Min Exi Min Mat Gar Mat Fac Gar Fac Gar Fac Gar Fac Gar Fac Gar Peak Influence 1888 | 5 377 395 1888 818 . 380 417 1501 953 118 784 489 547 294 456 254 810 460 988 Initial 736 | . 3 125 150 736 . . 107 261 731 98 34 411 282 287 65 239 177 420 322 Average 559 | 2 239 311 952 728 . 300 208 893 575 65 444 418 448 278 280 243 578 445 602 Maximum Alert Level 5 | . 1 1 5 3 . 1 2 4 3 . 3 2 2 1 2 1 3 2 3 Low Security (%) 13 | 100 31 7 4 . . 24 53 . 2 100 38 . . 4 14 . 3 . . Level 1 35 | . 68 92 14 . . 75 39 17 35 . 5 32 13 95 72 100 41 . 27 Level 2 18 | . . . 23 49 . . 6 11 7 . 34 67 86 . 13 . . 100 32 Level 3 21 | . . . 11 50 . . . 40 54 . 22 . . . . . 55 . 40 Level 4 8 | . . . 31 . . . . 30 . . . . . . . . . . . Level 5 2 | . . . 15 . . . . . . . . . . . . . . . . High Security . | . . . . . . . . . . . . . . . . . . . . Max Security . | . . . . . . . . . . . . . . . . . . . . Sterilizations 1 | . . . 1 . . . . . . . . . . . . . . . . Squads Dispatched 27 | . 4 . 14 . . . 7 . . 2 . . . . . . . . . Investigation 15 | . 4 . 9 . . . 2 . . . . . . . . . . . . Extermination 1 | . . . . . . . . . . 1 . . . . . . . . . Reinforcement 5 | . . . 3 . . . 2 . . . . . . . . . . . . Assault 2 | . . . 2 . . . . . . . . . . . . . . . . Garrison 4 | . . . . . . . 3 . . 1 . . . . . . . . . Intercept . | . . . . . . . . . . . . . . . . . . . . Searches Triggered . | . . . . . . . . . . . . . . . . . . . . Construction Impeded 2 | . . . 2 . . . . . . . . . . . . . . . . Haulers Reinforced . | . . . . . . . . . . . . . . . . . . . . Active Scanning Responses . | . . . . . . . . . . . . . . . . . . . . Cargo Convoy Interrupts . | . . . . . . . . . . . . . . . . . . . . Stealth | -11 -10 -10 -9 -9 -9 -8 -8 -8 -8 -7 -7 -7 -7 -6 -6 -5 -5 -4 -4 --------- Run | Jun Mat Min Mat Min Exi Min Mat Gar Mat Fac Gar Fac Gar Fac Gar Fac Gar Fac Gar Distress Signals 7 | . 1 . 3 . . . 2 . 1 . . . . . . . . . . Communications Jammed . | . . . . . . . . . . . . . . . . . . . . Distress Signals . | . . . . . . . . . . . . . . . . . . . . Times Spotted 366 | . 27 17 72 24 . 10 28 31 37 2 15 4 12 . 15 1 33 3 35 Peak Tracking Total 20 | . 5 3 6 20 . 4 6 10 4 1 5 1 4 . 5 1 12 2 9 Tactical Retreats 20 | . 4 1 1 . . . 2 1 2 . 3 . 1 . 1 . 1 . 3 Traps | -11 -10 -10 -9 -9 -9 -8 -8 -8 -8 -7 -7 -7 -7 -6 -6 -5 -5 -4 -4 ------- Run | Jun Mat Min Mat Min Exi Min Mat Gar Mat Fac Gar Fac Gar Fac Gar Fac Gar Fac Gar Traps Triggered 28 | . 3 . 3 . . . 1 4 2 1 5 . 2 . . . 6 . 1 Indirectly . | . . . . . . . . . . . . . . . . . . . . Trap Hack Attempts . | . . . . . . . . . . . . . . . . . . . . Triggered . | . . . . . . . . . . . . . . . . . . . . Disarmed . | . . . . . . . . . . . . . . . . . . . . Reprogrammed . | . . . . . . . . . . . . . . . . . . . . Reused . | . . . . . . . . . . . . . . . . . . . . Traps Extracted . | . . . . . . . . . . . . . . . . . . . . Installed . | . . . . . . . . . . . . . . . . . . . . Triggered . | . . . . . . . . . . . . . . . . . . . . Machines | -11 -10 -10 -9 -9 -9 -8 -8 -8 -8 -7 -7 -7 -7 -6 -6 -5 -5 -4 -4 ---------- Run | Jun Mat Min Mat Min Exi Min Mat Gar Mat Fac Gar Fac Gar Fac Gar Fac Gar Fac Gar Machines Disabled 44 | . . . 16 . . . 4 7 2 . 7 . 1 . 1 . 4 1 1 Max in Single Turn 2 | . . . 2 . . . 1 1 1 . 1 . 1 . 1 . 2 1 1 Garrison Relay 20 | . . . . . . . . 7 . . 7 . 1 . 1 . 3 . 1 Machines Repaired 1 | . . . 1 . . . . . . . . . . . . . . . . Machines Sabotaged . | . . . . . . . . . . . . . . . . . . . . Overloaded Fab Kills . | . . . . . . . . . . . . . . . . . . . . Hacking | -11 -10 -10 -9 -9 -9 -8 -8 -8 -8 -7 -7 -7 -7 -6 -6 -5 -5 -4 -4 --------- Run | Jun Mat Min Mat Min Exi Min Mat Gar Mat Fac Gar Fac Gar Fac Gar Fac Gar Fac Gar Machines Accessed 58 | . 8 . 12 1 4 . 9 2 5 4 . 4 . 4 . 1 2 2 . Terminals 40 | . 6 . 10 1 . . 6 2 4 3 . 3 . 2 . . 2 1 . Fabricators . | . . . . . . . . . . . . . . . . . . . . Repair Stations 3 | . . . . . . . 2 . . . . . . 1 . . . . . Recycling Units 5 | . 2 . 2 . . . . . 1 . . . . . . . . . . Scanalyzers . | . . . . . . . . . . . . . . . . . . . . Garrison Access 6 | . . . . . . . 1 . . 1 . 1 . 1 . 1 . 1 . Total Hacks 123 | . 22 . 28 3 7 . 23 2 11 6 . 8 . 6 . 1 2 4 . Successful 62 | . 10 . 13 1 7 . 10 2 5 2 . 4 . 3 . 1 2 2 . Failed 61 | . 12 . 15 2 . . 13 . 6 4 . 4 . 3 . . . 2 . Catastrophic 13 | . . . 4 . . . 3 . 1 2 . . . 2 . . . 1 . Database Lockouts . | . . . . . . . . . . . . . . . . . . . . Manual 63 | . 13 . 21 3 1 . 11 . 6 2 . 2 . 3 . . . 1 . Terminals 94 | . 20 . 25 3 . . 14 2 10 5 . 7 . 3 . . 2 3 . Fabricators . | . . . . . . . . . . . . . . . . . . . . Repair Stations 10 | . . . . . . . 8 . . . . . . 2 . . . . . Recycling Units 6 | . 2 . 3 . . . . . 1 . . . . . . . . . . Scanalyzers . | . . . . . . . . . . . . . . . . . . . . Garrison Access 6 | . . . . . . . 1 . . 1 . 1 . 1 . 1 . 1 . Terminal Hacks 41 | . 6 . 8 1 7 . 4 2 4 1 . 3 . 2 . . 2 1 . Record 6 | . . . . . 6 . . . . . . . . . . . . . . Robot Analysis 3 | . 1 . 1 1 . . . . . . . . . . . . . . . Open DSF 1 | . . . . . . . . . . . . 1 . . . . . . . Branch Access Points 1 | . . . 1 . . . . . . . . . . . . . . . . Emergency Access Points 1 | . . . . . . . . 1 . . . . . . . . . . . Terminal Index 1 | . . . 1 . . . . . . . . . . . . . . . . Alert Level 4 | . . . 1 . . . 1 . 1 . . . . 1 . . . . . Unreport Threat 7 | . . . . . . . 2 . 3 1 . 1 . . . . . . . Hauler Manifests 5 | . 1 . 1 . . . 1 . . . . 1 . 1 . . . . . Zone Layout 8 | . 4 . 3 . . . . . . . . . . . . . . 1 . Garrison Registry 1 | . . . . . . . . 1 . . . . . . . . . . . Patrol Navigation 1 | . . . . . . . . . . . . . . . . . 1 . . Security Stations 1 | . . . . . . . . . . . . . . . . . 1 . . EX-Prototype ID Bank 1 | . . . . . 1 . . . . . . . . . . . . . . Fabricator Hacks . | . . . . . . . . . . . . . . . . . . . . Repair Station Hacks 5 | . . . . . . . 5 . . . . . . . . . . . . Scan Component 3 | . . . . . . . 3 . . . . . . . . . . . . Repair 2 | . . . . . . . 2 . . . . . . . . . . . . Recycling Unit Hacks 1 | . . . . . . . . . 1 . . . . . . . . . . Retrieve Components 1 | . . . . . . . . . 1 . . . . . . . . . . Scanalyzer . | . . . . . . . . . . . . . . . . . . . . Garrison Access Hacks 6 | . . . . . . . 1 . . 1 . 1 . 1 . 1 . 1 . Unlock Access 6 | . . . . . . . 1 . . 1 . 1 . 1 . 1 . 1 . Unauthorized Hacks 9 | . 4 . 5 . . . . . . . . . . . . . . . . Terminals 5 | . 2 . 3 . . . . . . . . . . . . . . . . Assimilate 1 | . 1 . . . . . . . . . . . . . . . . . . Operators 2 | . 1 . 1 . . . . . . . . . . . . . . . . Sabotage 2 | . . . 2 . . . . . . . . . . . . . . . . Fabricators . | . . . . . . . . . . . . . . . . . . . . Repair Stations . | . . . . . . . . . . . . . . . . . . . . Recycling Units 4 | . 2 . 2 . . . . . . . . . . . . . . . . Tunnel 4 | . 2 . 2 . . . . . . . . . . . . . . . . Scanalyzers . | . . . . . . . . . . . . . . . . . . . . Garrison Access . | . . . . . . . . . . . . . . . . . . . . Data Cores Recovered . | . . . . . . . . . . . . . . . . . . . . Used . | . . . . . . . . . . . . . . . . . . . . Hacking Detections 40 | . 6 . 9 1 . . 7 1 4 3 . 4 . 3 . . . 2 . Full Trace Events 8 | . 2 . 4 1 . . 1 . . . . . . . . . . . . Feedback Events 2 | . . . 1 . . . 1 . . . . . . . . . . . . Corruption 2 | . . . 1 . . . 1 . . . . . . . . . . . . Feedback Blocked . | . . . . . . . . . . . . . . . . . . . . Robot Schematics Acquired . | . . . . . . . . . . . . . . . . . . . . Robots Built . | . . . . . . . . . . . . . . . . . . . . Authchips . | . . . . . . . . . . . . . . . . . . . . Time . | . . . . . . . . . . . . . . . . . . . . Total Robot Build Rating . | . . . . . . . . . . . . . . . . . . . . Part Schematics Acquired . | . . . . . . . . . . . . . . . . . . . . Parts Built . | . . . . . . . . . . . . . . . . . . . . Authchips . | . . . . . . . . . . . . . . . . . . . . Time . | . . . . . . . . . . . . . . . . . . . . Total Part Build Rating . | . . . . . . . . . . . . . . . . . . . . Parts Repaired 2 | . . . . . . . 2 . . . . . . . . . . . . Time 64 | . . . . . . . 64 . . . . . . . . . . . . Parts Recycled . | . . . . . . . . . . . . . . . . . . . . Recycled Matter . | . . . . . . . . . . . . . . . . . . . . Retrieved Matter . | . . . . . . . . . . . . . . . . . . . . Retrieved Components 5 | . . . . . . . . . 5 . . . . . . . . . . Parts Scanalyzed . | . . . . . . . . . . . . . . . . . . . . Part Schematics Acquired . | . . . . . . . . . . . . . . . . . . . . Parts Damaged . | . . . . . . . . . . . . . . . . . . . . Bothacking | -11 -10 -10 -9 -9 -9 -8 -8 -8 -8 -7 -7 -7 -7 -6 -6 -5 -5 -4 -4 ------------ Run | Jun Mat Min Mat Min Exi Min Mat Gar Mat Fac Gar Fac Gar Fac Gar Fac Gar Fac Gar Used RIF Installer 5 | . . . . . . . . 1 . . 1 . 1 . 1 . . . 1 Robot Detection 1 | . . . . . . . . . . . . . . . 1 . . . . Patrol Navigation 1 | . . . . . . . . . . . . . . . . . . . 1 Program Shield 1 | . . . . . . . . . . . 1 . . . . . . . . Autooverride 1 | . . . . . . . . . . . . . 1 . . . . . . Robots Hacked 45 | . . . . . . . . . 15 2 4 4 2 . 7 . 8 2 1 Non-combat 13 | . . . . . . . . . 6 2 . 3 . . . . . 2 . Combat 32 | . . . . . . . . . 9 . 4 1 2 . 7 . 8 . 1 Autooverrided 3 | . . . . . . . . . . . . . . . 2 . 1 . . Robot Hacks Applied 50 | . . . . . . . . . 19 2 4 4 2 . 6 . 8 4 1 drop_inventory 3 | . . . . . . . . . 2 1 . . . . . . . . . check_alert 1 | . . . . . . . . . . . . . . . . . . 1 . purge_threat 1 | . . . . . . . . . 1 . . . . . . . . . . block_reporting 3 | . . . . . . . . . 2 . . . . . . . . 1 . map_route 3 | . . . . . . . . . 1 . . 1 . . . . . 1 . mark_security 1 | . . . . . . . . . 1 . . . . . . . . . . link_complan 2 | . . . . . . . . . . . . 1 . . 1 . . . . broadcast_data 1 | . . . . . . . . . . . . . . . 1 . . . . disrupt_area 9 | . . . . . . . . . 1 . 2 . 2 . 1 . 3 . . overload_power 1 | . . . . . . . . . 1 . . . . . . . . . . amplify_resonance 1 | . . . . . . . . . . . . 1 . . . . . . . reboot_system 1 | . . . . . . . . . 1 . . . . . . . . . . go_dormant 1 | . . . . . . . . . 1 . . . . . . . . . . overwrite_iff 2 | . . . . . . . . . 1 . . . . . . . 1 . . streamctrl_low 1 | . . . . . . . . . . . . . . . . . . 1 . streamctrl_high 3 | . . . . . . . . . 2 1 . . . . . . . . . formatsys_low 1 | . . . . . . . . . 1 . . . . . . . . . . formatsys_high 15 | . . . . . . . . . 4 . 2 1 . . 3 . 4 . 1 Relay Couplers Released 31 | . . . . . . . . 10 . . 12 . 1 . 1 . 5 . 2 Machine Destruction 31 | . . . . . . . . 10 . . 12 . 1 . 1 . 5 . 2 Attached 15 | . . . . . . . . 5 . . 5 . . . . . 4 . 1 Fabnet Peak Effective % . | . . . . . . . . . . . . . . . . . . . . Robots Rewired 3 | . . . . . . . . . . . . . . . . . 3 . . Allies Hacked . | . . . . . . . . . . . . . . . . . . . . Hacks Repelled . | . . . . . . . . . . . . . . . . . . . . Allies | -11 -10 -10 -9 -9 -9 -8 -8 -8 -8 -7 -7 -7 -7 -6 -6 -5 -5 -4 -4 -------- Run | Jun Mat Min Mat Min Exi Min Mat Gar Mat Fac Gar Fac Gar Fac Gar Fac Gar Fac Gar Total Allies 28 | . . 2 . . . . . . 7 1 2 1 . . 4 . 9 1 1 Largest Group 5 | . . 2 . . . . . . 5 1 2 1 . . 3 1 4 1 1 Highest-Rated Group 144 | . . 45 . . . . . . 77 26 64 10 . . 93 32 144 26 47 Highest-Rated Ally 49 | . . 31 . . . . . . 21 26 32 10 . . 32 32 49 26 47 Total Orders 2 | . . . . . . . . . 2 . . . . . . . . . . STAY 1 | . . . . . . . . . 1 . . . . . . . . . . FOLLOW 1 | . . . . . . . . . 1 . . . . . . . . . . Ally Attacks 86 | . . . . . . . . . 18 . 9 . . . 12 . 35 . 12 Total Damage 2103 | . . . . . . . . . 326 . 267 . . . 344 . 924 . 242 Kills 12 | . . . . . . . . . 4 . 2 . . . 3 . 1 . 2 Allies Corrupted 1 | . . . . . . . . . . . . . . . . . 1 . . Allies Melted 1 | . . . . . . . . . . . . . . . . . 1 . . Intel | -11 -10 -10 -9 -9 -9 -8 -8 -8 -8 -7 -7 -7 -7 -6 -6 -5 -5 -4 -4 ------- Run | Jun Mat Min Mat Min Exi Min Mat Gar Mat Fac Gar Fac Gar Fac Gar Fac Gar Fac Gar Robot Analysis Total 3 | . 1 . 1 1 . . . . . . . . . . . . . . . Derelict Logs Recovered 4 | . . 2 . 2 . . . . . . . . . . . . . . . Drone Launches . | . . . . . . . . . . . . . . . . . . . . Drone Recoveries . | . . . . . . . . . . . . . . . . . . . . Exploration | -11 -10 -10 -9 -9 -9 -8 -8 -8 -8 -7 -7 -7 -7 -6 -6 -5 -5 -4 -4 ------------- Run | Jun Mat Min Mat Min Exi Min Mat Gar Mat Fac Gar Fac Gar Fac Gar Fac Gar Fac Gar Turns Passed 14229 | 35 932 756 2487 796 511 429 1143 1387 1358 254 540 241 339 421 703 35 1164 307 391 Spaces Moved 10702 | 25 731 591 1759 707 502 312 665 840 964 275 576 355 253 457 353 27 844 255 211 Core 1 | . . . . . . . . . . . . . . . . . . . 1 Treads 11 | . . . . . . . . . 11 . . . . . . . . . . Legs 1973 | 5 . . . . . . . . 114 . . . . 213 305 27 844 255 210 Wheels 6562 | 20 601 591 1759 707 502 312 665 840 565 . . . . . . . . . . Hover 2155 | . 130 . . . . . . . 274 275 576 355 253 244 48 . . . . Flight . | . . . . . . . . . . . . . . . . . . . . Fastest Speed 48 | 80 56 80 80 100 100 115 105 90 56 48 48 48 48 51 105 113 103 103 50 Average Speed 93 | 88 79 80 96 100 100 115 112 111 99 72 48 48 72 81 122 113 105 103 105 Slowest Speed 250 | 120 120 80 100 100 115 115 120 120 250 116 48 48 120 130 190 113 115 115 120 Overloaded Moves . | . . . . . . . . . . . . . . . . . . . . Propulsion Burnouts . | . . . . . . . . . . . . . . . . . . . . Robots Hopped . | . . . . . . . . . . . . . . . . . . . . Cave-ins Triggered 1 | . . . . . . . . . . . . . . . 1 . . . . Exploration Rate (%) 48 | 2 94 89 88 98 88 83 63 71 75 10 64 11 29 12 28 2 44 5 20 Regions Visited 19 Branch Regions 4 Pre-discovered Areas 8 | . 2 2 2 2 . . . . . . . . . . . . . . . Known Exits Taken 8 | . . 1 1 . . . 1 . . 1 . 1 . 1 . 1 . 1 . Unknown Exits Taken 6 | 1 1 . . 1 1 1 . . 1 . . . . . . . . . . Scrap Searched 5 | . . 1 . 3 . 1 . . . . . . . . . . . . . Spaces Dug 115 | . . . 54 . . . 11 12 4 4 9 3 . 1 9 . 8 . . Terrain Destroyed 963 | . . . 342 102 . 175 113 58 11 4 14 3 . 2 32 . 71 . 36 Melee 27 | . . . . . . . . 12 . 4 8 3 . . . . . . . Projectile 106 | . . . 2 2 . 3 16 . 11 . 6 . . 2 32 . 32 . . AOE 829 | . . . 340 100 . 172 97 46 . . . . . . . . 38 . 36 Terrain Rammed . | . . . . . . . . . . . . . . . . . . . . Walls Destroyed . | . . . . . . . . . . . . . . . . . . . . Machines Disabled . | . . . . . . . . . . . . . . . . . . . . Actions | -11 -10 -10 -9 -9 -9 -8 -8 -8 -8 -7 -7 -7 -7 -6 -6 -5 -5 -4 -4 --------- Run | Jun Mat Min Mat Min Exi Min Mat Gar Mat Fac Gar Fac Gar Fac Gar Fac Gar Fac Gar Total 13411 | 32 947 736 2242 752 513 343 956 1086 1289 309 744 395 345 497 521 31 1026 294 353 Wait 945 | 1 131 31 154 6 2 8 187 32 184 1 10 6 14 . 52 4 33 19 70 Move 10689 | 24 730 590 1758 706 501 311 665 839 963 275 575 355 252 457 352 27 843 255 211 Hop . | . . . . . . . . . . . . . . . . . . . . Pick Up 36 | 1 . 2 6 . 1 . 8 2 . 2 4 1 1 1 4 . 1 1 1 Fast Attach 132 | 3 7 4 14 1 1 . 11 6 19 6 4 . 5 15 7 . 12 3 14 Attach 12 | . . . . . 1 1 4 2 . . 1 1 . . 1 . . 1 . Detach 4 | . . . . . 2 1 . . 1 . . . . . . . . . . Swap 71 | . 1 3 13 3 . 1 6 9 9 2 7 1 1 1 2 . 8 2 2 Drop 136 | 1 4 6 19 1 5 . 12 4 21 6 7 2 2 16 11 . 13 5 1 Fire 773 | 2 67 69 222 25 . 13 52 30 77 2 12 9 4 7 60 . 72 8 42 Melee 205 | . . . . . . . . 95 3 10 47 15 35 . . . . . . Ram 3 | . . . 3 . . . . . . . . . . . . . . . . Kick . | . . . . . . . . . . . . . . . . . . . . Crush . | . . . . . . . . . . . . . . . . . . . . Escape Stasis 98 | . . . . . . . . 16 . . 52 . 26 . . . 2 . 2 Rewire 21 | . . . . . . . . . . . . . . . 1 . 20 . . Trap . | . . . . . . . . . . . . . . . . . . . . Miscellaneous 286 | . 7 31 53 10 . 8 11 51 12 5 25 5 5 . 31 . 22 . 10 Route ------- -11/Junkyard -10/Materials (discovered 4 exits: *Mat x3 / [*Min]) -10/Mines (discovered 2 exits: *Mat x2) -9/Materials (discovered 5 exits: *Mat x3 / *Min x2) -9/Mines (discovered 4 exits: *Mat x2 / *Exi / [*Zio]) -9/Exiles -8/Mines (discovered 2 exits: *Mat x2) -8/Materials (discovered 4 exits: *Fac x3 / Gar) -8/Garrison (discovered 4 exits: *Mat x4) -8/Materials (discovered 2 exits: *Fac x2) -7/Factory (discovered 2 exits: *Fac / Gar) -7/Garrison (discovered 2 exits: *Fac x2) -7/Factory (discovered 3 exits: *Fac / [*Low] / Gar) -7/Garrison -6/Factory (discovered 2 exits: [*Low] / Gar) -6/Garrison -5/Factory -5/Garrison (discovered 2 exits: *Fac / [*Fac]) -4/Factory -4/Garrison History --------- Turn | Location | Event 1 | -11/Junkyard | Upgraded with Utility slot (x1) 1 | -11/Junkyard | Upgraded with Weapon slot (x1) 1 | -11/Junkyard | Discovered new exit (range 1) 36 | -11/Junkyard | Entered Materials 106 | -10/Materials | Upgraded with Propulsion slot (x1) 110 | -10/Materials | Discovered new exit (range 5) 112 | -10/Materials | Identified exit to Materials 155 | -10/Materials | Discovered exit to Materials (range 20) 308 | -10/Materials | Build established: Mutant 544 | -10/Materials | Discovered exit to Materials (range 4) 551 | -10/Materials | Reached level 2 583 | -10/Materials | Upgraded with Utility slot (x1) 751 | -10/Materials | Discovered new exit (range 9) 968 | -10/Materials | Entered Mines 970 | -10/Mines | Reached level 3 1184 | -10/Mines | Learned location of Zion (-7) 1187 | -10/Mines | Learned location of Storage (-7) 1222 | -10/Mines | Discovered exit to Materials (range 11) 1459 | -10/Mines | Reached level 4 1479 | -10/Mines | Upgraded with Utility slot (x1) 1564 | -10/Mines | Discovered exit to Materials (range 10) 1681 | -10/Mines | Build established: Scavenger-Mutant 1724 | -10/Mines | Entered Materials 1726 | -9/Materials | Reached level 5 1757 | -9/Materials | Discovered new exit (range 14) 1805 | -9/Materials | Upgraded with Utility slot (x1) 2041 | -9/Materials | Discovered new exit (range 12) 2116 | -9/Materials | Reached level 6 2540 | -9/Materials | Discovered new exit (range 15) 2562 | -9/Materials | Reached level 7 2577 | -9/Materials | Upgraded with Utility slot (x1) 2732 | -9/Materials | Identified exit to Mines 2885 | -9/Materials | Reached level 8 2924 | -9/Materials | First assault squad dispatched 3111 | -9/Materials | Upgraded with Power slot (x1) 3165 | -9/Materials | Reached level 9 3452 | -9/Materials | Discovered new exit (range 15) 4167 | -9/Materials | Sterilization system engaged 4167 | -9/Materials | Non-combat units ordered to evacuate 4211 | -9/Materials | Entered Mines 4213 | -9/Mines | Reached level 10 4269 | -9/Mines | Found a damaged Exp. Sensor Array with a note attached 4272 | -9/Mines | Found Prototype Device 4272 | -9/Mines | Identified Exp. Sensor Array 4380 | -9/Mines | Learned Materials emergency access door positions 4467 | -9/Mines | A Derelict revealed a hidden shortcut to a safe place 4492 | -9/Mines | Discovered new exit (range 10) 4508 | -9/Mines | Deemed a non-threat by the Exiles lab entrance 4508 | -9/Mines | Discovered new exit (range 5) 4565 | -9/Mines | Assembled infested the area 4641 | -9/Mines | Destroyed 22 combat bots 4841 | -9/Mines | Discovered new exit (range 11) 4873 | -9/Mines | Received a Rocket Launcher from a helpful Derelict 5007 | -9/Mines | Entered Exiles 5031 | -9/Exiles | Met 8R-AWN 5052 | -9/Exiles | Met EX-HEX 5082 | -9/Exiles | Met EX-BIN 5094 | -9/Exiles | Aligned with FarCom system 5095 | -9/Exiles | Given EX-Vault access code 5122 | -9/Exiles | Opened EX-Vault 5166 | -9/Exiles | Warned to stay clear of 0b10 Research branches 5204 | -9/Exiles | Found YOLO Cannon 5333 | -9/Exiles | Met EX-DEC 5378 | -9/Exiles | Visited The Gauntlet 5509 | -9/Exiles | Discovered new exit (range 10) 5518 | -9/Exiles | Left Exiles lab with YOLO Cannon 5518 | -9/Exiles | Entered Mines 5612 | -8/Mines | Reached level 11 5674 | -8/Mines | Discovered new exit (range 9) 5818 | -8/Mines | Build established: Scavenger-Skirmisher 5924 | -8/Mines | Discovered new exit (range 6) 5947 | -8/Mines | Entered Materials 5949 | -8/Materials | Reached level 12 6005 | -8/Materials | Upgraded with Utility slot (x1) 6143 | -8/Materials | Build established: Scavenger-Mutant 6235 | -8/Materials | Core integrity fell below 50% 6265 | -8/Materials | Lost 5 parts (1p3u1w) 6458 | -8/Materials | Repaired Hrd. Medium Armor Plating 6486 | -8/Materials | Repaired Lgt. Armor Plating 6489 | -8/Materials | Discovered new exit (range 15) 6561 | -8/Materials | Build established: Skirmisher 6601 | -8/Materials | Discovered new exit (range 14) 6876 | -8/Materials | Garrison activated, responded to threat 6933 | -8/Materials | Reached level 13 6961 | -8/Materials | Discovered new exit (range 16) 7034 | -8/Materials | Core integrity fell below 20% 7090 | -8/Materials | Identified exit to Garrison 7090 | -8/Materials | Entered Garrison 7274 | -8/Garrison | Garrison Relay disabled 7330 | -8/Garrison | Triggered checkpoint 7359 | -8/Garrison | Destroyed 7 combat bots 7459 | -8/Garrison | Discovered new exit (range 10) 7478 | -8/Garrison | Triggered checkpoint 7499 | -8/Garrison | Discovered new exit (range 5) 7570 | -8/Garrison | Build established: Assassin 7672 | -8/Garrison | Triggered checkpoint 7762 | -8/Garrison | Garrison Relay disabled 7762 | -8/Garrison | Reached level 14 7801 | -8/Garrison | Upgraded with Utility slot (x1) 7895 | -8/Garrison | Discovered new exit (range 15) 7999 | -8/Garrison | Garrison Relay disabled 8045 | -8/Garrison | Discovered new exit (range 36) 8045 | -8/Garrison | Discovered new exit (range 15) 8045 | -8/Garrison | Discovered new exit (range 53) 8045 | -8/Garrison | Discovered new exit (range 43) 8147 | -8/Garrison | Installed Relay Interface Framework 8253 | -8/Garrison | Garrison Relay disabled 8262 | -8/Garrison | Garrison Relay disabled 8270 | -8/Garrison | Garrison Relay disabled 8277 | -8/Garrison | Garrison Relay disabled 8354 | -8/Garrison | Triggered checkpoint 8477 | -8/Garrison | Entered Materials 8508 | -8/Materials | Build established: Bothacker-Assassin 8630 | -8/Materials | Discovered new exit (range 4) 8847 | -8/Materials | Build established: Bothacker-Mutant 8949 | -8/Materials | Discovered new exit (range 14) 9717 | -8/Materials | System corruption reached 10% 9835 | -8/Materials | Entered Factory 9836 | -7/Factory | Core integrity fell below 50% 9837 | -7/Factory | Reached level 15 9973 | -7/Factory | Upgraded with Propulsion slot (x1) 10046 | -7/Factory | Discovered new exit (range 7) 10050 | -7/Factory | Garrison activated, responded to threat 10089 | -7/Factory | Identified exit to Garrison 10089 | -7/Factory | Entered Garrison 10099 | -7/Garrison | Expanded RIF knowledge: Program Shield 10108 | -7/Garrison | Triggered checkpoint 10126 | -7/Garrison | Core integrity fell below 20% 10151 | -7/Garrison | Garrison Relay disabled 10151 | -7/Garrison | Reached level 16 10155 | -7/Garrison | Upgraded with Weapon slot (x1) 10298 | -7/Garrison | Garrison Relay disabled 10321 | -7/Garrison | Garrison Relay disabled 10326 | -7/Garrison | Garrison Relay disabled 10352 | -7/Garrison | Garrison Relay disabled 10368 | -7/Garrison | Triggered checkpoint 10400 | -7/Garrison | Garrison Relay disabled 10436 | -7/Garrison | Discovered new exit (range 10) 10504 | -7/Garrison | Triggered checkpoint 10521 | -7/Garrison | Triggered checkpoint 10552 | -7/Garrison | Triggered checkpoint 10552 | -7/Garrison | Garrison Relay disabled 10604 | -7/Garrison | Discovered new exit (range 10) 10629 | -7/Garrison | Entered Factory 10733 | -7/Factory | Discovered new exit (range 15) 10814 | -7/Factory | Discovered new exit (range 11) 10870 | -7/Factory | Identified exit to Garrison 10870 | -7/Factory | Entered Garrison 10896 | -7/Garrison | Garrison Relay disabled 10900 | -7/Garrison | Triggered checkpoint 11063 | -7/Garrison | Discovered new exit (range 10) 11195 | -7/Garrison | Expanded RIF knowledge: Autooverride 11195 | -7/Garrison | Reached level 17 11209 | -7/Garrison | Entered Factory 11210 | -6/Factory | Core integrity fell below 50% 11210 | -6/Factory | Core integrity fell below 20% 11439 | -6/Factory | Discovered new exit (range 8) 11630 | -6/Factory | Identified exit to Garrison 11630 | -6/Factory | Entered Garrison 11654 | -6/Garrison | Expanded RIF knowledge: Robot Detection 11654 | -6/Garrison | Reached level 18 11666 | -6/Garrison | Triggered checkpoint 11805 | -6/Garrison | Garrison Relay disabled 11918 | -6/Garrison | Triggered checkpoint 12142 | -6/Garrison | Crushed by falling debris 12310 | -6/Garrison | Discovered new exit (range 11) 12333 | -6/Garrison | Entered Factory 12333 | -5/Factory | Accompanied by 1 ally 12334 | -5/Factory | Core integrity fell below 50% 12335 | -5/Factory | Reached level 19 12364 | -5/Factory | Identified exit to Garrison 12368 | -5/Factory | Entered Garrison 12368 | -5/Garrison | Accompanied by 1 ally 12382 | -5/Garrison | Triggered checkpoint 12389 | -5/Garrison | Reached level 20 12418 | -5/Garrison | Garrison Relay disabled 12466 | -5/Garrison | Triggered checkpoint 12476 | -5/Garrison | Core integrity fell below 20% 12508 | -5/Garrison | Discovered new exit (range 6) 12832 | -5/Garrison | Learned Factory security intel 12837 | -5/Garrison | Discovered new exit (range 15) 12884 | -5/Garrison | Garrison Relay disabled 12886 | -5/Garrison | Reached level 21 12916 | -5/Garrison | Destroyed 12 combat bots 12926 | -5/Garrison | Upgraded with Utility slot (x1) 12979 | -5/Garrison | Triggered checkpoint 13066 | -5/Garrison | Triggered checkpoint 13225 | -5/Garrison | Build established: Botlord-Mutant 13439 | -5/Garrison | Spotted B-75 Beast 13448 | -5/Garrison | Triggered checkpoint 13468 | -5/Garrison | Triggered checkpoint 13532 | -5/Garrison | Entered Factory 13533 | -4/Factory | Core integrity fell below 50% 13534 | -4/Factory | Reached level 22 13839 | -4/Factory | Identified exit to Garrison 13839 | -4/Factory | Entered Garrison 13898 | -4/Garrison | Triggered checkpoint 13899 | -4/Garrison | Core integrity fell below 20% 13916 | -4/Garrison | Garrison Relay disabled 13916 | -4/Garrison | Reached level 23 14146 | -4/Garrison | Expanded RIF knowledge: Patrol Navigation 14153 | -4/Garrison | Upgraded with Power slot (x1) 14212 | -4/Garrison | Triggered checkpoint 14219 | -4/Garrison | Triggered checkpoint 14222 | -4/Garrison | Reached level 24 14230 | -4/Garrison | Destroyed by X-82 Rainmaker with Heavy Flak Cannon Last Messages --------------- 14174_ Integrated Corrupted Lgt. Nuclear Core (+1). 14174_ Corrupted Lgt. Nuclear Core temporarily disabled. 14182_ Acquired 42 matter. 14183_ Acquired 37 matter. 14187_ Acquired 98 matter. 14188_ Acquired 92 matter. 14203_ Triggered Stasis Trap. 14203_ A bubble of rippling energy engulfs the area. 14203_ Field strength at 74. 14204_ Field strength at 48. 14205_ Field strength at 22. 14206_ Stasis field depleted. 14212_ Beams of light sweep through the air. An alarm sounds. 14215_ Destroyed VTOL Module. 14216_ S-27 Virus destroyed. 14221_ G-67 Veteran destroyed. 14222_ Reached level 24. 14222_ Destroyed Unknown Reactor. 14222_ L-61 Swordsman destroyed. 14228_ S-27 Virus destroyed. Map ----- +----------------------------------------------------+ | ?????????????????????????????????????????????????? | | ?????????????????????????????????????????????????? | | ?????????????????????????????????????????????????? | | ?????????????????????????????????????????????????? | | ?????????????????????????????????????????????????? | | ?????????????????????????????????????????????????? | | ?????????????????????????????????????????????????? | | ?????????????????????????????????????????????????? | | ?????????????????????????????????????????????????? | | ????????????????????????# ??????????????????????? | | ???????????????????????? ????????????????????? | | ???????????????????????? ??????????????????? | | ???????????????????????? ????????????????? | | ???????????????????????# x#???????????????? | | ??????????????????????## ## ????????????? | | ???????????????????????= ????????????? | | ??????????????????????? g ??Y?????????? | | ???????????????????????% ????????????? | | ??????????????????????? % ??????????????? | | ??????????????????????## #???????????????? | | ?????????????????????## % ## #??????????? | | ?????????????????????? ??????????? | | ??????????????????????? ???????????? | | ???????????????????????# %s* ????????????????? | | ??????????????????????## =#ss??????????????????? | | ??????????????????????# @ #????????????????????? | | ??????????????????????# #????????????????????? | | ????????????????????? #???????????????????? | | ???????????????????# ### ###???????????????????? | | ???????????????????#???# ^#?????????????????????? | | ???????????????????????#^ #?????????????????????? | | ######################## #?????????????????????? | | #?????????????????????? | | = #?????????????????????? | | [% == #?????????????????????? | | ############### ###########?????????????????????? | | ??????????????# %#???????????????????????????????? | | ??????????????# #???????????????????????????????? | | ??????????????# #???????????????????????????????? | | ??????????????# #???????????????????????????????? | | ???#########??# #???????????????????????????????? | | ???#"""""""#??# ########????????????????????????? | | ???#" "#??# ##""" "#????????????????????????? | | ##### "#??# ### ###???????????????????????? | | # ##??# #???????????????????????? | | #??# #???????????????????????? | | */ #??# ## =##???????????????????????? | | = #### ## [ #????????????????????????? | | ! %#= # ########????????????????????????? | | ! /# # #???????????????????????????????? | +----------------------------------------------------+ Best States ------------- Heat Dissipation 110 Energy Generation 47 Energy Capacity 675 Matter Stores 450 Matter Capacity 450 Sight Range 16 Robot Scan Range 20 Terrain Scan Range 16 Terrain Scan Density 410 Jamming Range 12 Armor Coverage 900 Resistance: KI 30 Resistance: TH 30 Resistance: EX 15 Resistance: EM 15 Weapon Shielding 66 Weapon Cycling 30 Phase Shifting 10 Evasion (%) 72 Targeting Accuracy 6 Melee Accuracy 6 Target Analysis 5 Recoil Reduction 1 Particle Charging 25 Force Boost 20 Defensive Hacking 10 Relay Coupler Types 5 Relay Coupler Value 250 Item Schematics ----------------- None Robot Schematics ------------------ None Fabricated ------------ Nothing Alien Tech Used ----------------- None Achievements -------------- Error 47 Exterminator Factory Defaults Challenges ------------ None RPGLIKE | -11 -10 -10 -9 -9 -9 -8 -8 -8 -8 -7 -7 -7 -7 -6 -6 -5 -5 -4 -4 --------- Run | Jun Mat Min Mat Min Exi Min Mat Gar Mat Fac Gar Fac Gar Fac Gar Fac Gar Fac Gar Levels Raised 23 | . 1 2 5 1 . 1 2 1 . 1 1 . 1 . 1 1 2 1 2 XP Earned 37637 | 3000 2510 2500 8305 419 117 1926 2574 1818 475 1169 1626 85 485 1049 1327 1500 2759 1575 2418 XP Spent 35465 | 1250 2350 3750 6920 1200 . . 2940 3155 920 1300 800 300 1360 625 1250 . 4770 . 2575 Upgrades 80 | 3 6 7 16 4 . . 10 6 4 3 1 2 3 3 1 . 6 . 5 Power Slot 2 | . . . 1 . . . . . . . . . . . . . . . 1 Propulsion Slot 2 | . 1 . . . . . . . . 1 . . . . . . . . . Utility Slot 8 | 1 1 1 2 . . . 1 1 . . . . . . . . 1 . . Weapon Slot 2 | 1 . . . . . . . . . . 1 . . . . . . . . Core Integrity 15 | . . . . . . . 6 2 2 . . . 2 1 . . 2 . . Heat Dissipation 11 | . . . 9 . . . . . . . . . . 2 . . . . . Energy Generation 3 | . . . . . . . . . . . . . . . . . 1 . 2 Energy Storage 2 | . . . . . . . . . . . . . . . . . . . 2 Matter Storage 3 | . . . . . . . . 3 . . . . . . . . . . . Mass Support 3 | . . . . . . . . . 2 . . . 1 . . . . . . Inventory Capacity 5 | 1 . 1 2 . . . . . . . . . . . 1 . . . . Terrain Scan Density 4 | . . . . . . . 2 . . . . 2 . . . . . . . Ranged Accuracy 2 | . 1 1 . . . . . . . . . . . . . . . . . Melee Accuracy 2 | . . . . . . . . . . 2 . . . . . . . . . KI Resistance % 3 | . 1 2 . . . . . . . . . . . . . . . . . TH Resistance % 4 | . 2 1 . . . . . . . . . . . . . . 1 . . EX Resistance % 3 | . . . . 3 . . . . . . . . . . . . . . . KI Damage % 1 | . . 1 . . . . . . . . . . . . . . . . . TH Damage % 3 | . . . 1 . . . 1 . . . . . . . . . 1 . . EX Damage % 2 | . . . 1 1 . . . . . . . . . . . . . . . Protomatter Created 2411 | . 84 223 674 107 . 49 193 365 31 35 181 40 33 . 179 . 130 . 87 Integrity Restored 5827 | . 157 669 878 187 . 143 241 1095 237 105 519 120 99 . 693 . 486 . 198 Core 5274 | . 144 669 388 161 . 131 229 1095 237 105 519 120 99 . 693 . 486 . 198 Parts 553 | . 13 . 490 26 . 12 12 . . . . . . . . . . . . Protomatter Decayed 457 | . 30 . 292 25 . . 44 . . . 37 . . . . . 29 . . Game ------ Seed CloakingScatterStorm Manual? 0 Play Time 03:06:45 Cumulative 120.2 hours Start 2023.04.03 @ 11:28:47 End 2023.04.03 @ 15:20:28 Sessions 1 Manual Loads 0 Difficulty Rogue Special Mode Winter2019/RPGLIKE Game No. 77 Rogue 77 Adventurer 0 Explorer 0 Win Type - Total 4 Types 3/0/0/1/0/0/0/0/0 Lore% 43 Gallery% 62 Achievement% 58 Wizard Run 0 Options --------- ASCII 0 Keyboard 0 Movement Numpad Keybinds 0 Fullscreen 2 Font 12/Smallcaps Map View 83x54 Tactical HUD 1 Map Filters NONE Filters NONE Steam 1 RUN: c022ebc1-a4a8-4b1d-959f-1ad21d63c564